Cogmind - Beta 16 @@@ ROGUE MODE // 2025.11.28 @ 17:59:37 Player: ZOT Result: Destroyed by S-27 Virus with Autogun Performance ------------- Evolutions (3) 1500 Regions Visited (7) 1400 Robots Destroyed (14) 70 Value Destroyed (362) 362 Prototype IDs (23) 460 Alien Tech Used (0) 0 Bonus (763) 763 TOTAL SCORE: 4555 Bonus ------- Follower Combat Kills 463 Aligned with FarCom 300 Cogmind --------- Core Integrity 0/700 Matter 275/300 Energy 74/160 System Corruption 5% Temperature Cool (0) Movement Hovering (116) Ox1 Location -7/Lower Caves Parts ------- > --- POWER (2) -------- Light Nuclear Core > --- PROPULSION (4) --- Improved Hover Unit Airjet > --- UTILITY (5) ------ Target Analyzer Reaction Control System Improved Medium Armor Plating > --- WEAPON (2) ------- Gatling Laser Flak Gun > --- INVENTORY (5) ---- Advanced Visual Processing Unit Faulty Experimental Sensor Array Mining Laser Peak State ------------ > --- POWER ------------ Light Ion Engine Improved Deuterium Engine > --- PROPULSION ------- Compact Wheel Improved Hover Unit Airjet Gravmag System > --- UTILITY ---------- Target Analyzer Energy Filter Kinecellerator Reaction Control System Improved Medium Armor Plating > --- WEAPON ----------- Gatling Laser Light EM Pulse Cannon > --- INVENTORY -------- Light Nuclear Core Advanced Visual Processing Unit Experimental Sensor Array Flak Gun Mining Laser [Rating: 41] Favorites ----------- Power Improved Deuterium Engine Engine Improved Deuterium Engine Power Core Light Nuclear Core Propulsion Wheel Treads Light Treads Leg Carbon-fiber Leg Wheel Wheel Hover Unit Improved Hover Unit Utility Propulsion Shielding Device Energy Filter Processor Advanced Targeting Computer Protection Propulsion Shielding Weapon Small Laser Energy Gun Small Laser Energy Cannon Light EM Pulse Cannon Ballistic Gun Assault Rifle Special Weapon Field Lobotomy Kit Build | -11 -10 -10 -10 -9 -8 -7 -7 ------- Run | Yrd Mat Min Exi Min Mat Fac Low Slots Evolved 6 | . . . . . 4 2 . Power 1 | . . . . . 1 . . Propulsion 2 | . . . . . 2 . . Utility 3 | . . . . . 1 2 . Weapon . | . . . . . . . . Parts Attached 49 | 5 1 6 1 . 10 22 4 Power 12 | 1 1 1 . . 3 5 1 Engine 10 | 1 1 1 . . 3 4 . Core 2 | . . . . . . 1 1 Reactor . | . . . . . . . . Propulsion 17 | 2 . 2 . . 5 8 . Treads 1 | . . . . . . 1 . Leg 7 | 2 . . . . 5 . . Wheel 6 | . . 2 . . . 4 . Hover 3 | . . . . . . 3 . Flight . | . . . . . . . . Utility 12 | . . 2 . . 2 6 2 Device 5 | . . . . . . 3 2 Storage . | . . . . . . . . Processor 2 | . . . . . 1 1 . Hackware . | . . . . . . . . Protection 5 | . . 2 . . 1 2 . Artifact . | . . . . . . . . Weapon 8 | 2 . 1 1 . . 3 1 Energy Gun 3 | 1 . . . . . 2 . Energy Cannon 1 | . . . . . . 1 . Ballistic Gun 3 | 1 . 1 . . . . 1 Ballistic Cannon . | . . . . . . . . Launcher . | . . . . . . . . Special Weapon 1 | . . . 1 . . . . Impact Weapon . | . . . . . . . . Slashing Weapon . | . . . . . . . . Piercing Weapon . | . . . . . . . . Special Melee Weapon . | . . . . . . . . Unidentified Prototypes . | . . . . . . . . Parts Lost 26 | . . 1 . . 1 17 7 Power 5 | . . . . . . 3 2 Propulsion 10 | . . 1 . . . 7 2 Utility 9 | . . . . . 1 6 2 Weapon 2 | . . . . . . 1 1 Highest Loss Streak 7 | . . 1 . . 1 7 7 To Critical Strikes . | . . . . . . . . Average Backups 4 | 1 2 4 5 5 4 4 4 Power 1 | . 1 2 2 2 . . . Propulsion . | . . . . . . . . Utility 1 | . . . 1 1 1 2 2 Weapon 1 | 1 1 2 2 2 2 1 2 Tool/Special . | . . . . . . . . Unused Backups 4 | . . . . . 1 . 3 Power 1 | . . . . . 1 . . Propulsion . | . . . . . . . . Utility 2 | . . . . . . . 2 Weapon 1 | . . . . . . . 1 Tool/Special . | . . . . . . . . Average Slot Usage (%) 85 | . 71 86 100 100 94 67 94 Engine 14 | . 14 14 14 14 18 12 14 Leg 11 | . 28 17 . . 26 14 . Wheel 11 | . . 10 28 28 8 5 6 Hover 4 | . . . . . . 3 22 Device 4 | . . . . . . 3 19 Processor 3 | . . . . . 4 5 7 Protection 15 | . . 16 28 28 19 11 7 Energy Gun 10 | . 14 14 14 14 9 5 7 Energy Cannon 1 | . . . . . . 1 6 Ballistic Gun 5 | . 14 14 11 . . . . Special Weapon 2 | . . . 2 14 8 . . Peak Build Rating 41 | 5 5 9 18 18 40 34 41 Average Rating 20 | 3 5 6 10 18 32 24 38 On Entrance 14 | . 5 5 9 18 18 30 34 Avg Prop Armor Cover (%) 1 | . . . . . 2 4 1 Naked Turns . | . . . . . . . . Heaviest Build 39 | 8 8 14 20 20 39 31 36 Greatest Support 66 | 20 20 20 20 20 66 66 24 Greatest Overweight (x) 7 | 1 . 1 . . 1 7 1 Average Overweight (x) . | . . . . . . . . Largest Inventory Capacity 5 | 5 5 5 5 5 5 5 5 Average Capacity 5 | 5 5 5 5 5 5 5 5 Most Carried 5 | 4 4 5 5 5 5 5 5 Average Carried 4 | 1 2 4 5 5 4 4 4 Final Capacity 5 | 5 5 5 5 5 5 5 5 Final Carried 5 | 2 4 5 5 5 5 5 3 Class Distribution -------------------- 55% | Scavenger-Mutant 44% | Mutant Dominant Class ---------------- Mutant | -10/Materials Mutant | -10/Mines Scavenger-Mutant | -10/Exiles Scavenger-Mutant | -9/Mines Mutant | -8/Materials Scavenger-Mutant | -7/Factory Scavenger-Mutant | -7/Lower Caves Resources | -11 -10 -10 -10 -9 -8 -7 -7 ----------- Run | Yrd Mat Min Exi Min Mat Fac Low Matter Collected 726 | 220 30 70 . 10 115 257 24 Remotely . | . . . . . . . . Salvage Created 568 | 27 47 52 . 136 57 249 . Parts 24 | 1 1 5 . 8 3 6 . Haulers Intercepted . | . . . . . . . . Recyclers Shooed . | . . . . . . . . Parts Field Recycled . | . . . . . . . . Retrieved Matter . | . . . . . . . . Parts Self-Destructed 4 | . . . . . . . 4 Prevented . | . . . . . . . . Parts Restored . | . . . . . . . . Kills | -11 -10 -10 -10 -9 -8 -7 -7 ------- Run | Yrd Mat Min Exi Min Mat Fac Low Combat Hostiles Destroyed 17 | . 1 2 . 3 1 10 . Guns 15 | . 1 2 . 3 1 8 . Classes Destroyed 7 | 1 1 2 . . 1 2 . Worker 2 | . . 1 . . . 1 . Tunneler 1 | 1 . . . . . . . Swarmer 5 | . . 2 . 3 . . . Grunt 3 | . 1 . . . . 2 . Hunter 1 | . . . . . 1 . . Programmer 2 | . . . . . . 2 . Assembled 6 | . . . . . . 6 . Best Kill Streak 6 | 1 1 3 . 3 1 6 . Combat Bots Only 6 | . 1 2 . 3 1 6 . Max Kills in Single Turn 1 | 1 1 1 . 1 1 1 . Gunslinging . | . . . . . . . . Exploded . | . . . . . . . . Melee . | . . . . . . . . Uniques/NPCs Destroyed . | . . . . . . . . Combat | -11 -10 -10 -10 -9 -8 -7 -7 -------- Run | Yrd Mat Min Exi Min Mat Fac Low Hostile Shots Fired 258 | . 25 20 . 12 22 136 43 Missed 64 | . 3 5 . 5 10 25 16 Hits 194 | . 22 15 . 7 12 111 27 Melee 11 | . . . . . . 11 . Projectile 183 | . 22 15 . 7 12 100 27 AOE 15 | . . . . . . 15 . Critical Strikes 3 | . . . . . . 3 . Damage Taken 3298 | . 294 108 . 53 207 2227 409 Core 779 | . 29 15 . 6 16 657 56 Absorbed by Shields . | . . . . . . . . Redirected to Shielding 98 | . . 13 . 2 10 73 . Core Remaining (%) 92 | 100 . . . 80 97 . . Volleys Fired 132 | 1 29 12 . 9 18 57 6 Largest 1 | 1 1 1 . 1 1 1 1 Hottest 80 | 40 40 40 . 40 40 80 56 Shots Fired 132 | 1 29 12 . 9 18 57 6 Gun 122 | 1 29 12 . 9 13 57 1 Cannon 5 | . . . . . . . 5 Launcher . | . . . . . . . . Special 5 | . . . . . 5 . . Kinetic 1 | . . . . . . . 1 Thermal 121 | 1 29 12 . 9 13 57 . Explosive . | . . . . . . . . Electromagnetic 5 | . . . . . . . 5 Robot Hit Streak 14 | 1 8 10 . 3 5 14 3 Robot Miss Streak 5 | . 3 2 . 1 1 3 5 Penetration Max . | . . . . . . . . Secondary Targets . | . . . . . . . . Shots Hit Robots 95 | 1 22 6 . 7 13 45 1 Core Hits 41 | 1 4 3 . 4 5 22 2 Critical Kills . | . . . . . . . . Critical Parts Destroyed . | . . . . . . . . Critical Strikes 1 | . . . . . . 1 . Burn 1 | . . . . . . 1 . Melee Attacks . | . . . . . . . . Impact . | . . . . . . . . Slashing . | . . . . . . . . Piercing . | . . . . . . . . Sneak Attacks . | . . . . . . . . Combat Hostiles . | . . . . . . . . Follow-up Attacks . | . . . . . . . . Damage Inflicted 1304 | 11 240 87 . 82 98 764 22 Guns 1293 | 11 240 86 . 82 98 754 22 Cannons . | . . . . . . . . Explosions . | . . . . . . . . Melee . | . . . . . . . . Ramming 11 | . . 1 . . . 10 . Kinetic 22 | . . . . . . . 22 Thermal 1271 | 11 240 86 . 82 98 754 . Explosive . | . . . . . . . . Electromagnetic . | . . . . . . . . Impact . | . . . . . . . . Slashing . | . . . . . . . . Piercing . | . . . . . . . . Highest Corruption 5 | . . . . . . 5 5 Average Corruption 4 | . . . . . . 4 5 Corruption Purged . | . . . . . . . . Corruption Blocked . | . . . . . . . . Effects 20 | . . . . . . 5 15 Message Errors 5 | . . . . . . . 5 Matter Fused 7 | . . . . . . 3 4 Heat Flow Errors 3 | . . . . . . 1 2 Data Loss (minor) 2 | . . . . . . 1 1 Data Loss (major) 1 | . . . . . . . 1 Alerts 2 | . . . . . . . 2 Overload Shots . | . . . . . . . . Overflow Damage . | . . . . . . . . Projectiles . | . . . . . . . . Explosions . | . . . . . . . . Melee . | . . . . . . . . Knockbacks . | . . . . . . . . Impact . | . . . . . . . . Kinetic . | . . . . . . . . Secondary . | . . . . . . . . Self-Inflicted Damage 5 | . . . . . . 5 . Shots . | . . . . . . . . Rammed 2 | . . 1 . . . 1 . Targets Rammed 2 | . . 1 . . . 1 . Kicked . | . . . . . . . . Crushed . | . . . . . . . . Highest Temperature 285 | . 90 40 . 48 162 285 229 Average Temperature 77 | . 46 16 . 21 66 104 88 Received Heat Transfer 423 | . 162 . . . 36 225 . Effects 3 | . . . . . . 3 . Energy Bleed 1 | . . . . . . 1 . Interference 2 | . . . . . . 2 . Siege Activations . | . . . . . . . . Martial Activations . | . . . . . . . . Shielding Activations . | . . . . . . . . Robots Disrupted . | . . . . . . . . Combat Hostiles . | . . . . . . . . Robots Corrupted . | . . . . . . . . Combat Hostiles . | . . . . . . . . Parts Fried . | . . . . . . . . Impact Corruptions . | . . . . . . . . Robots Melted 2 | . . . . . . 2 . Combat Hostiles 2 | . . . . . . 2 . Parts Melted 6 | . 1 1 . 1 . 3 . Heat Transferred 2931 | 25 550 200 . 175 225 1756 . Parts Sabotaged . | . . . . . . . . Parts Stolen . | . . . . . . . . Parts Stripped . | . . . . . . . . Power Chain Reactions . | . . . . . . . . Alert | -11 -10 -10 -10 -9 -8 -7 -7 ------- Run | Yrd Mat Min Exi Min Mat Fac Low Maximum Alert Level . | . . . . . . . . Low Security (%) 100 | 100 100 100 . 100 100 100 . Level 1 . | . . . . . . . . Level 2 . | . . . . . . . . Level 3 . | . . . . . . . . Level 4 . | . . . . . . . . Level 5 . | . . . . . . . . High Security . | . . . . . . . . Max Security . | . . . . . . . . Peak Influence 127 | 5 20 103 . 70 45 127 . Initial 17 | . . . . . 1 17 . Average 23 | . 3 29 . 31 15 30 . Influence Increases 816 | 5 50 197 . 75 174 315 . Destroy 0b10 Robot/C 540 | . 20 160 . 60 120 180 . Destroy 0b10 Robot/NC 20 | 5 . 5 . 5 . 5 . Destroy Leader 110 | . . 20 . 10 40 40 . Allied During Kill 43 | . . 12 . . 13 18 . Successful Hack 35 | . . . . . . 35 . Destroy Structure 8 | . . . . . 1 7 . Lose Combat Pursuer 60 | . 30 . . . . 30 . Influence Decreases 816 | 5 50 142 55 70 140 345 9 Entered New Map 85 | . . . 55 . 4 22 4 Time Decay 553 | 5 50 112 . 70 106 205 5 Lost Part 98 | . . 10 . . 10 78 . Lost Ally 80 | . . 20 . . 20 40 . Squads Dispatched 9 | . . . . . 5 4 . Investigation 4 | . . . . . 2 2 . Extermination 1 | . . . . . . 1 . Reinforcement 3 | . . . . . 2 1 . Assault . | . . . . . . . . Garrison 1 | . . . . . 1 . . Intercept . | . . . . . . . . Searches Triggered . | . . . . . . . . Construction Impeded . | . . . . . . . . Haulers Reinforced . | . . . . . . . . Active Scanning Responses . | . . . . . . . . Cargo Convoy Interrupts . | . . . . . . . . Stealth | -11 -10 -10 -10 -9 -8 -7 -7 --------- Run | Yrd Mat Min Exi Min Mat Fac Low Distress Signals 2 | . . . . . 2 . . Communications Jammed . | . . . . . . . . Distress Signals . | . . . . . . . . Times Spotted 60 | . 4 8 . 3 12 30 3 Peak Tracking Total 10 | . 2 3 . 3 3 10 3 Tactical Retreats 3 | . 2 . . . . 1 . Traps | -11 -10 -10 -10 -9 -8 -7 -7 ------- Run | Yrd Mat Min Exi Min Mat Fac Low Traps Triggered 2 | . . . . . 1 1 . Indirectly . | . . . . . . . . Trap Hack Attempts . | . . . . . . . . Triggered . | . . . . . . . . Disarmed 4 | . 4 . . . . . . Reprogrammed . | . . . . . . . . Reused . | . . . . . . . . Traps Extracted . | . . . . . . . . Installed . | . . . . . . . . Triggered . | . . . . . . . . Machines | -11 -10 -10 -10 -9 -8 -7 -7 ---------- Run | Yrd Mat Min Exi Min Mat Fac Low Machines Disabled . | . . . . . . . . Max in Single Turn . | . . . . . . . . Machines Repaired . | . . . . . . . . Machines Dismantled . | . . . . . . . . Machines Sabotaged . | . . . . . . . . Overloaded Fab Kills . | . . . . . . . . Hacking | -11 -10 -10 -10 -9 -8 -7 -7 --------- Run | Yrd Mat Min Exi Min Mat Fac Low Machines Accessed 13 | . 2 1 5 . 1 4 . Terminals 7 | . 2 1 . . 1 3 . Fabricators . | . . . . . . . . Repair Stations . | . . . . . . . . Recycling Units . | . . . . . . . . Scanalyzers 1 | . . . . . . 1 . Garrison Access . | . . . . . . . . Total Hacks 69 | . 4 2 50 . 3 10 . Successful 57 | . 3 . 50 . . 4 . Failed 12 | . 1 2 . . 3 6 . Catastrophic 5 | . 1 . . . 1 3 . Database Lockouts . | . . . . . . . . Manual 20 | . 2 . 9 . 2 7 . Terminals 18 | . 4 2 . . 3 9 . Fabricators . | . . . . . . . . Repair Stations . | . . . . . . . . Recycling Units . | . . . . . . . . Scanalyzers 1 | . . . . . . 1 . Garrison Access . | . . . . . . . . Terminal Hacks 56 | . 3 . 50 . . 3 . Record 50 | . . . 49 . . 1 . Branch Access Points 2 | . 1 . . . . 1 . Alert Level 1 | . . . . . . 1 . Locate Traps 1 | . 1 . . . . . . Disarm Traps 1 | . 1 . . . . . . Proto ID Catalog 1 | . . . 1 . . . . Fabricator Hacks . | . . . . . . . . Repair Station Hacks . | . . . . . . . . Recycling Unit Hacks . | . . . . . . . . Scanalyzer . | . . . . . . . . Garrison Access Hacks . | . . . . . . . . Unauthorized Hacks 1 | . . . . . . 1 . Terminals 1 | . . . . . . 1 . Assimilate 1 | . . . . . . 1 . Fabricators . | . . . . . . . . Repair Stations . | . . . . . . . . Recycling Units . | . . . . . . . . Scanalyzers . | . . . . . . . . Garrison Access . | . . . . . . . . Data Cores Recovered . | . . . . . . . . Used . | . . . . . . . . Hacking Detections 8 | . 2 1 . . 1 4 . Full Trace Events 2 | . . . . . 1 1 . Feedback Events . | . . . . . . . . Feedback Blocked . | . . . . . . . . Robot Schematics Acquired . | . . . . . . . . Robots Built . | . . . . . . . . Authchips . | . . . . . . . . Time . | . . . . . . . . Total Robot Build Rating . | . . . . . . . . Part Schematics Acquired . | . . . . . . . . Parts Built . | . . . . . . . . Authchips . | . . . . . . . . Time . | . . . . . . . . Total Part Build Rating . | . . . . . . . . Part Studies Acquired . | . . . . . . . . Parts Repaired . | . . . . . . . . Time . | . . . . . . . . Parts Recycled . | . . . . . . . . Recycled Matter . | . . . . . . . . Retrieved Matter . | . . . . . . . . Retrieved Components . | . . . . . . . . Parts Scanalyzed . | . . . . . . . . Part Schematics Acquired . | . . . . . . . . Parts Damaged . | . . . . . . . . Bothacking | -11 -10 -10 -10 -9 -8 -7 -7 ------------ Run | Yrd Mat Min Exi Min Mat Fac Low Used RIF Installer . | . . . . . . . . Robots Hacked . | . . . . . . . . Non-combat . | . . . . . . . . Combat . | . . . . . . . . Robot Hacks Applied . | . . . . . . . . Relay Couplers Released . | . . . . . . . . Fabnet Peak Effective % . | . . . . . . . . Robots Rewired . | . . . . . . . . Allies Hacked 1 | . . . . . . 1 . Hacks Repelled . | . . . . . . . . Allies | -11 -10 -10 -10 -9 -8 -7 -7 -------- Run | Yrd Mat Min Exi Min Mat Fac Low Total Allies 6 | . . 2 . . 4 . . Largest Group 2 | . . 2 1 . 2 2 . Highest-Rated Group 106 | . . 43 31 . 106 103 . Highest-Rated Ally 90 | . . 31 31 . 90 90 . Total Orders . | . . . . . . . . Ally Attacks 67 | . . 17 . . 26 24 . Total Damage 1335 | . . 230 . . 565 540 . Kills 17 | . . 6 . . 5 6 . Allies Corrupted . | . . . . . . . . Allies Melted . | . . . . . . . . Field Lobotomies 4 | . . . . . 4 . . Intel | -11 -10 -10 -10 -9 -8 -7 -7 ------- Run | Yrd Mat Min Exi Min Mat Fac Low Active Infowar (turns) . | . . . . . . . . Robot Analysis Total . | . . . . . . . . Derelict Logs Recovered 2 | . . 1 . 1 . . . Drone Launches . | . . . . . . . . Drone Recoveries . | . . . . . . . . Exploration | -11 -10 -10 -10 -9 -8 -7 -7 ------------- Run | Yrd Mat Min Exi Min Mat Fac Low Turns Passed 2974 | 63 242 410 505 164 349 754 487 Spaces Moved 2274 | 42 143 265 618 164 222 435 385 Core 79 | 3 . . . . . 76 . Treads 14 | . . . . . . 14 . Legs 744 | 39 143 172 . . 208 182 . Wheels 948 | . . 93 618 164 14 59 . Hover 489 | . . . . . . 104 385 Flight . | . . . . . . . . Fastest Speed 50 | 50 120 80 80 80 95 50 52 Average Speed 101 | 116 120 107 80 80 118 106 116 Slowest Speed 400 | 120 120 190 80 80 190 400 117 Overloaded Moves . | . . . . . . . . Propulsion Burnouts . | . . . . . . . . Robots Hopped . | . . . . . . . . Potential Cave-ins . | . . . . . . . . Cave-ins Triggered . | . . . . . . . . Exploration Rate (%) 34 | 3 28 44 93 32 20 14 39 Regions Visited 7 Branch Regions 4 Pre-discovered Areas 1 | . . . 1 . . . . Known Exits Taken 4 | . 1 . . 1 1 1 . Unknown Exits Taken 3 | 1 . 1 1 . . . . Scrap Searched 6 | . . 1 . . . . 5 Spaces Dug . | . . . . . . . . Terrain Destroyed . | . . . . . . . . Melee . | . . . . . . . . Projectile . | . . . . . . . . AOE . | . . . . . . . . Terrain Rammed . | . . . . . . . . Walls Destroyed . | . . . . . . . . Machines Disabled . | . . . . . . . . Actions | -11 -10 -10 -10 -9 -8 -7 -7 --------- Run | Yrd Mat Min Exi Min Mat Fac Low Total 2797 | 55 184 376 628 187 287 663 417 Wait 292 | 1 10 86 9 15 21 128 22 Move 2267 | 41 142 264 617 163 221 434 385 Hop . | . . . . . . . . Pick Up 29 | 7 2 4 . . 6 10 . Fast Attach 22 | . . 3 1 . 4 12 2 Attach 23 | 5 . 1 . . 3 12 2 Detach 2 | . . . . . . 2 . Swap 10 | . 1 2 . . 5 2 . Drop 18 | . . 3 1 . 9 5 . Fire 132 | 1 29 12 . 9 18 57 6 Melee . | . . . . . . . . Ram 2 | . . 1 . . . 1 . Kick . | . . . . . . . . Crush . | . . . . . . . . Escape Stasis . | . . . . . . . . Rewire . | . . . . . . . . Trap . | . . . . . . . . Miscellaneous . | . . . . . . . . Route ------- -11/Scrapyard -10/Materials (discovered 2 exits: *Min x2) -10/Mines -10/Exiles -9/Mines -8/Materials -7/Factory (discovered 2 exits: *Low x2) -7/Lower Caves History --------- Turn | Location | Event 12 | -11/Scrapyard | Discovered new exit (range 16) 64 | -11/Scrapyard | Entered Materials 271 | -10/Materials | Identified exit to Mines 305 | -10/Materials | Build established: Mutant 306 | -10/Materials | Entered Mines 342 | -10/Mines | Learned location of 1 exit from Materials 657 | -10/Mines | Found a damaged Exp. Sensor Array with a note attached 660 | -10/Mines | Found Prototype Device 699 | -10/Mines | Deemed a non-threat by the Exiles lab entrance 700 | -10/Mines | Discovered new exit (range 5) 716 | -10/Mines | Entered Exiles 716 | -10/Exiles | Accompanied by 1 ally 737 | -10/Exiles | Met 8R-AWN 746 | -10/Exiles | Led the pair of lost Derelicts to a safe place 763 | -10/Exiles | Met EX-HEX 807 | -10/Exiles | Met EX-DEC 849 | -10/Exiles | Visited The Gauntlet 870 | -10/Exiles | Build established: Scavenger-Mutant 963 | -10/Exiles | Learned location of Zion (-6) 992 | -10/Exiles | Discovered new exit (range 14) 1070 | -10/Exiles | Met EX-BIN 1084 | -10/Exiles | Aligned with FarCom system 1085 | -10/Exiles | Given EX-Vault access code 1124 | -10/Exiles | Opened EX-Vault 1128 | -10/Exiles | Found Field Lobotomy Kit 1146 | -10/Exiles | Warned to stay clear of 0b10 Research branches 1221 | -10/Exiles | Left Exiles lab with Field Lobotomy Kit 1221 | -10/Exiles | Entered Mines 1249 | -9/Mines | Identified exit to Materials 1385 | -9/Mines | Entered Materials 1385 | -8/Materials | Evolved 4 slots: Power x1, Propulsion x2, Utility x1 1386 | -8/Materials | Identified exit to Factory 1446 | -8/Materials | Garrison activated, responded to threat 1543 | -8/Materials | Assimilated G-47 Trooper with FLK Orb 1596 | -8/Materials | Assimilated Y-45 Defender with FLK Orb 1660 | -8/Materials | Assimilated X-62 Marksman with FLK Orb 1668 | -8/Materials | Assimilated H-61 Shepherd with FLK Orb 1709 | -8/Materials | Met 7R-MNS 1723 | -8/Materials | Build established: Mutant 1734 | -8/Materials | Entered Factory 1734 | -7/Factory | Accompanied by 2 allies 1734 | -7/Factory | Evolved 2 slots: Utility x2 1735 | -7/Factory | Caught up to 7R-MNS 2150 | -7/Factory | Lost 7 parts (4n2u1w) 2213 | -7/Factory | Core integrity fell below 50% 2221 | -7/Factory | Core integrity fell below 20% 2279 | -7/Factory | Lost 5 parts (2p1n2u) 2363 | -7/Factory | Lost 4 parts (1p2n1u) 2391 | -7/Factory | Identified exit to Lower Caves 2488 | -7/Factory | Entered Lower Caves 2548 | -7/Lower Caves | Build established: Scavenger-Mutant 2975 | -7/Lower Caves | Destroyed by S-27 Virus with Autogun Last Messages --------------- 02697_ |X:QPB7G0W O=SE7SZDE 02722_ System corrupted: Heat flow error (+137). 02737_ 3QPJNTXSQSL2RHWIHSM3WPTHD3 T 02753_ E%NKNXTTQS,HXWE MSH2TIH 02809_ System corrupted: IFF burst signal emitted. 02838_ System corrupted: Heat flow error (+235). 02860_ WXLKXA2FGP%MUTHJ>#TJ6C EZKVFOYJG 02870_ 1T-EMR(k) breaks down the debris. 02904_ System corrupted: Matter fused (-5). 02935_ System corrupted: Matter fused (-7). 02943_ Lgt. Ion Engine destroyed. 02943_ Imp. Deuterium Engine destroyed. 02944_ Energy Filter destroyed. 02945_ Com. Wheel destroyed. 02950_ Gravmag System destroyed. 02955_ AASQTHFQTUWW>,/